{"text_format":"3","workbook":"xlsx","n_sheets":1,"sheets":["Pārtikas iepirkumu saraksts"],"not_rendered":{"images":1,"defined_names":3},"read":"whole","date_system":"1900"}

{"sheet":"Pārtikas iepirkumu saraksts","index":0,"n_rows":31,"n_cols":8,"rows_kept":31}
[null,"Pārtikas preču iepirkumu saraksts"]
[null,"DATUMS"]
[null,"Vai gatavs?","Prece","Kategorija","Skaits","Cena","Kopējā cena","Zīmols/piezīmes"]
[null,null,"Apelsīni","Produkti",null,null,{"$f":"IFERROR(SUM(PārtikasPrečuIepirkumuSaraksts[[#This Row],[Skaits]]*PārtikasPrečuIepirkumuSaraksts[[#This Row],[Cena]]), \"\")","v":{"v":0,"d":"0.00 EUR"}}]
[null,null,"Āboli","Produkti",null,null,{"$f":"IFERROR(SUM(PārtikasPrečuIepirkumuSaraksts[[#This Row],[Skaits]]*PārtikasPrečuIepirkumuSaraksts[[#This Row],[Cena]]), \"\")","v":{"v":0,"d":"0.00 EUR"}}]
[null,null,"Banāni","Produkti",null,null,{"$f":"IFERROR(SUM(PārtikasPrečuIepirkumuSaraksts[[#This Row],[Skaits]]*PārtikasPrečuIepirkumuSaraksts[[#This Row],[Cena]]), \"\")","v":{"v":0,"d":"0.00 EUR"}}]
[null,null,"Salāti","Produkti",null,null,{"$f":"IFERROR(SUM(PārtikasPrečuIepirkumuSaraksts[[#This Row],[Skaits]]*PārtikasPrečuIepirkumuSaraksts[[#This Row],[Cena]]), \"\")","v":{"v":0,"d":"0.00 EUR"}}]
[null,null,"Tomāti","Produkti",null,null,{"$f":"IFERROR(SUM(PārtikasPrečuIepirkumuSaraksts[[#This Row],[Skaits]]*PārtikasPrečuIepirkumuSaraksts[[#This Row],[Cena]]), \"\")","v":{"v":0,"d":"0.00 EUR"}},"  "]
[null,null,"Piens ","Piena produkti",null,null,{"$f":"IFERROR(SUM(PārtikasPrečuIepirkumuSaraksts[[#This Row],[Skaits]]*PārtikasPrečuIepirkumuSaraksts[[#This Row],[Cena]]), \"\")","v":{"v":0,"d":"0.00 EUR"}}]
[null,null,"Siers","Piena produkti",null,null,{"$f":"IFERROR(SUM(PārtikasPrečuIepirkumuSaraksts[[#This Row],[Skaits]]*PārtikasPrečuIepirkumuSaraksts[[#This Row],[Cena]]), \"\")","v":{"v":0,"d":"0.00 EUR"}}]
[null,null,"Olas","Piena produkti",null,null,{"$f":"IFERROR(SUM(PārtikasPrečuIepirkumuSaraksts[[#This Row],[Skaits]]*PārtikasPrečuIepirkumuSaraksts[[#This Row],[Cena]]), \"\")","v":{"v":0,"d":"0.00 EUR"}}]
[null,null,"Biezpiens","Piena produkti",null,null,{"$f":"IFERROR(SUM(PārtikasPrečuIepirkumuSaraksts[[#This Row],[Skaits]]*PārtikasPrečuIepirkumuSaraksts[[#This Row],[Cena]]), \"\")","v":{"v":0,"d":"0.00 EUR"}}]
[null,null,"Liellopu gaļa","Gaļa",null,null,{"$f":"IFERROR(SUM(PārtikasPrečuIepirkumuSaraksts[[#This Row],[Skaits]]*PārtikasPrečuIepirkumuSaraksts[[#This Row],[Cena]]), \"\")","v":{"v":0,"d":"0.00 EUR"}}]
[null,null,"Vistas gaļa","Gaļa",null,null,{"$f":"IFERROR(SUM(PārtikasPrečuIepirkumuSaraksts[[#This Row],[Skaits]]*PārtikasPrečuIepirkumuSaraksts[[#This Row],[Cena]]), \"\")","v":{"v":0,"d":"0.00 EUR"}}]
[null,null,"Šķiņķis","Gaļa",null,null,{"$f":"IFERROR(SUM(PārtikasPrečuIepirkumuSaraksts[[#This Row],[Skaits]]*PārtikasPrečuIepirkumuSaraksts[[#This Row],[Cena]]), \"\")","v":{"v":0,"d":"0.00 EUR"}}]
[null,null,"Sula","Dzērieni",null,null,{"$f":"IFERROR(SUM(PārtikasPrečuIepirkumuSaraksts[[#This Row],[Skaits]]*PārtikasPrečuIepirkumuSaraksts[[#This Row],[Cena]]), \"\")","v":{"v":0,"d":"0.00 EUR"}}]
[null,null,"Kafija","Dzērieni",null,null,{"$f":"IFERROR(SUM(PārtikasPrečuIepirkumuSaraksts[[#This Row],[Skaits]]*PārtikasPrečuIepirkumuSaraksts[[#This Row],[Cena]]), \"\")","v":{"v":0,"d":"0.00 EUR"}}]
[null,null,"Tēja","Dzērieni",null,null,{"$f":"IFERROR(SUM(PārtikasPrečuIepirkumuSaraksts[[#This Row],[Skaits]]*PārtikasPrečuIepirkumuSaraksts[[#This Row],[Cena]]), \"\")","v":{"v":0,"d":"0.00 EUR"}}]
[null,null,"Ūdens","Dzērieni",null,null,{"$f":"IFERROR(SUM(PārtikasPrečuIepirkumuSaraksts[[#This Row],[Skaits]]*PārtikasPrečuIepirkumuSaraksts[[#This Row],[Cena]]), \"\")","v":{"v":0,"d":"0.00 EUR"}}]
[null,null,"Nūdeles","Makaroni",null,null,{"$f":"IFERROR(SUM(PārtikasPrečuIepirkumuSaraksts[[#This Row],[Skaits]]*PārtikasPrečuIepirkumuSaraksts[[#This Row],[Cena]]), \"\")","v":{"v":0,"d":"0.00 EUR"}}]
[null,null,"Rīsi","Makaroni",null,null,{"$f":"IFERROR(SUM(PārtikasPrečuIepirkumuSaraksts[[#This Row],[Skaits]]*PārtikasPrečuIepirkumuSaraksts[[#This Row],[Cena]]), \"\")","v":{"v":0,"d":"0.00 EUR"}}]
[null,null,"Konservi","Zupa",null,null,{"$f":"IFERROR(SUM(PārtikasPrečuIepirkumuSaraksts[[#This Row],[Skaits]]*PārtikasPrečuIepirkumuSaraksts[[#This Row],[Cena]]), \"\")","v":{"v":0,"d":"0.00 EUR"}}]
[null,null,"Garšvielu maisījums","Zupa",null,null,{"$f":"IFERROR(SUM(PārtikasPrečuIepirkumuSaraksts[[#This Row],[Skaits]]*PārtikasPrečuIepirkumuSaraksts[[#This Row],[Cena]]), \"\")","v":{"v":0,"d":"0.00 EUR"}}]
[null,null,"Maize","Konditorejas izstrādājumi",null,null,{"$f":"IFERROR(SUM(PārtikasPrečuIepirkumuSaraksts[[#This Row],[Skaits]]*PārtikasPrečuIepirkumuSaraksts[[#This Row],[Cena]]), \"\")","v":{"v":0,"d":"0.00 EUR"}}]
[null,null,"Kartupeļu čipsi","Uzkodas",null,null,{"$f":"IFERROR(SUM(PārtikasPrečuIepirkumuSaraksts[[#This Row],[Skaits]]*PārtikasPrečuIepirkumuSaraksts[[#This Row],[Cena]]), \"\")","v":{"v":0,"d":"0.00 EUR"}}]
[null,null,"Kliņģeri","Uzkodas",null,null,{"$f":"IFERROR(SUM(PārtikasPrečuIepirkumuSaraksts[[#This Row],[Skaits]]*PārtikasPrečuIepirkumuSaraksts[[#This Row],[Cena]]), \"\")","v":{"v":0,"d":"0.00 EUR"}}]
[null,null,"Saldējums","Uzkodas",null,null,{"$f":"IFERROR(SUM(PārtikasPrečuIepirkumuSaraksts[[#This Row],[Skaits]]*PārtikasPrečuIepirkumuSaraksts[[#This Row],[Cena]]), \"\")","v":{"v":0,"d":"0.00 EUR"}}]
[null,null,"Cepumi","Uzkodas",null,null,{"$f":"IFERROR(SUM(PārtikasPrečuIepirkumuSaraksts[[#This Row],[Skaits]]*PārtikasPrečuIepirkumuSaraksts[[#This Row],[Cena]]), \"\")","v":{"v":0,"d":"0.00 EUR"}}]
[null,null,"Papīra šķīvji","Piederumi",null,null,{"$f":"IFERROR(SUM(PārtikasPrečuIepirkumuSaraksts[[#This Row],[Skaits]]*PārtikasPrečuIepirkumuSaraksts[[#This Row],[Cena]]), \"\")","v":{"v":0,"d":"0.00 EUR"}}]
[null,null,"Salvetes","Piederumi",null,null,{"$f":"IFERROR(SUM(PārtikasPrečuIepirkumuSaraksts[[#This Row],[Skaits]]*PārtikasPrečuIepirkumuSaraksts[[#This Row],[Cena]]), \"\")","v":{"v":0,"d":"0.00 EUR"}}]
[{"$nulls":6},{"$f":"SUBTOTAL(109,PārtikasPrečuIepirkumuSaraksts[Kopējā cena])","v":{"v":0,"d":"0.00 EUR"}}]